[Event "*** Titled Tuesday Blitz"]
[Site "Chess.com"]
[Date "2020.05.12"]
[Round "1"]
[White "LittlePeasant"]
[Black "Djager97"]
[Result "1-0"]
[WhiteElo "2755"]
[BlackElo "2399"]
[TimeControl "180+1"]
[EndTime "10:05:41 PDT"]
[Termination "LittlePeasant won by resignation"]

1. Nf3 {[%clk 0:03:00.9]} 1... d5 {[%clk 0:02:59.6]} 2. c4 {[%clk 0:03:01.8]}
2... e6 {[%clk 0:02:59.3]} 3. b3 {[%clk 0:03:02.1]} 3... Nf6 {[%clk 0:02:57.5]}
4. g3 {[%clk 0:03:01.4]} 4... b6 {[%clk 0:02:53.6]} 5. Bg2 {[%clk 0:03:01.4]}
5... Bb7 {[%clk 0:02:53.7]} 6. O-O {[%clk 0:03:01.8]} 6... Be7 {[%clk
0:02:53.4]} 7. Bb2 {[%clk 0:03:02.2]} 7... O-O {[%clk 0:02:50.6]} 8. e3 {[%clk
0:03:02.6]} 8... c5 {[%clk 0:02:47.1]} 9. Nc3 {[%clk 0:03:02.7]} 9... h6 {[%clk
0:02:29.7]} 10. Qe2 {[%clk 0:03:01.7]} 10... Nbd7 {[%clk 0:02:16]} 11. Rfd1
{[%clk 0:03:00.8]} 11... Rc8 {[%clk 0:02:03.3]} 12. h3 {[%clk 0:03:00.4]} 12...
Qc7 {[%clk 0:02:03]} 13. Rac1 {[%clk 0:02:50.7]} 13... Qb8 {[%clk 0:01:59.8]}
14. cxd5 {[%clk 0:02:47.2]} 14... Nxd5 {[%clk 0:01:59]} 15. Nxd5 {[%clk
0:02:47.2]} 15... Bxd5 {[%clk 0:01:58.5]} 16. e4 {[%clk 0:02:47.3]} 16... Bb7
{[%clk 0:01:50.3]} 17. d3 {[%clk 0:02:45.9]} 17... Rfd8 {[%clk 0:01:40]} 18. a3
{[%clk 0:02:45.7]} 18... Bf6 {[%clk 0:01:28.6]} 19. b4 {[%clk 0:02:42]} 19...
Ne5 {[%clk 0:00:56.3]} 20. bxc5 {[%clk 0:02:32.8]} 20... Nxf3+ {[%clk
0:00:48.2]} 21. Bxf3 {[%clk 0:02:32.4]} 21... Bxb2 {[%clk 0:00:48.7]} 22. Qxb2
{[%clk 0:02:33.3]} 22... bxc5 {[%clk 0:00:45]} 23. Rb1 {[%clk 0:02:30.1]} 23...
Ba8 {[%clk 0:00:33.9]} 24. Qc3 {[%clk 0:02:30.1]} 24... Qd6 {[%clk 0:00:25.2]}
25. Kg2 {[%clk 0:02:26.8]} 25... e5 {[%clk 0:00:22.4]} 26. Rb5 {[%clk
0:02:22.1]} 26... Qd4 {[%clk 0:00:18.1]} 27. Qxd4 {[%clk 0:02:19.2]} 27... Rxd4
{[%clk 0:00:17.4]} 28. Ra5 {[%clk 0:02:17.5]} 28... Rc7 {[%clk 0:00:16.2]} 29.
Be2 {[%clk 0:02:12.1]} 29... c4 {[%clk 0:00:13.5]} 30. Rxe5 {[%clk 0:02:05.9]}
30... c3 {[%clk 0:00:11.8]} 31. Re8+ {[%clk 0:02:05.2]} 31... Kh7 {[%clk
0:00:11.7]} 32. Rxa8 {[%clk 0:02:05.7]} 32... c2 {[%clk 0:00:12.6]} 33. Rc1
{[%clk 0:02:05.7]} 33... Ra4 {[%clk 0:00:13]} 34. Rb8 {[%clk 0:02:02.1]} 34...
Rxa3 {[%clk 0:00:13.2]} 35. Rb2 {[%clk 0:02:02.6]} 35... Rac3 {[%clk 0:00:14.1]}
36. d4 {[%clk 0:02:01.4]} 36... a5 {[%clk 0:00:14.5]} 37. d5 {[%clk 0:02:01.6]}
37... a4 {[%clk 0:00:15]} 38. d6 {[%clk 0:02:01.9]} 38... R7c5 {[%clk
0:00:15.6]} 39. d7 {[%clk 0:02:01.5]} 39... a3 {[%clk 0:00:16.3]} 40. Ra2 {[%clk
0:01:58.7]} 1-0

[Event "*** Titled Tuesday Blitz"]
[Site "Chess.com"]
[Date "2020.05.12"]
[Round "1"]
[White "narutosmith"]
[Black "GMartin_Petrov"]
[Result "0-1"]
[WhiteElo "2251"]
[BlackElo "2580"]
[TimeControl "180+1"]
[EndTime "10:05:46 PDT"]
[Termination "GMartin_Petrov won by resignation"]

1. c4 {[%clk 0:03:00.9]} 1... c5 {[%clk 0:02:53.2]} 2. Nc3 {[%clk 0:03:00.9]}
2... Nf6 {[%clk 0:02:51.7]} 3. g3 {[%clk 0:03:01.4]} 3... d5 {[%clk 0:02:50.2]}
4. cxd5 {[%clk 0:03:00.2]} 4... Nxd5 {[%clk 0:02:51.1]} 5. Bg2 {[%clk 0:03:00]}
5... Nc7 {[%clk 0:02:51.1]} 6. Qa4+ {[%clk 0:02:58.5]} 6... Nd7 {[%clk
0:02:44.8]} 7. Nf3 {[%clk 0:02:40.3]} 7... g6 {[%clk 0:02:38.3]} 8. d4 {[%clk
0:02:01.8]} 8... Bg7 {[%clk 0:02:35.3]} 9. dxc5 {[%clk 0:02:00.1]} 9... O-O
{[%clk 0:02:35.1]} 10. Be3 {[%clk 0:01:54.9]} 10... Ne6 {[%clk 0:02:29.1]} 11.
Rd1 {[%clk 0:01:39.3]} 11... Ndxc5 {[%clk 0:02:01.3]} 12. Rxd8 {[%clk
0:01:32.9]} 12... Bxc3+ {[%clk 0:02:00.8]} 13. bxc3 {[%clk 0:01:06.9]} 13...
Nxa4 {[%clk 0:02:00.2]} 14. Rxf8+ {[%clk 0:01:06.2]} 14... Kxf8 {[%clk
0:02:00.4]} 15. O-O {[%clk 0:01:04.4]} 15... Nxc3 {[%clk 0:01:59.7]} 16. Re1
{[%clk 0:00:57.1]} 16... f6 {[%clk 0:01:46.1]} 17. Kh1 {[%clk 0:00:55.2]} 17...
Bd7 {[%clk 0:01:44.2]} 18. Nd4 {[%clk 0:00:38.9]} 18... Nxd4 {[%clk 0:01:27.7]}
19. Bxd4 {[%clk 0:00:39.8]} 19... Nb5 {[%clk 0:01:28]} 20. Be3 {[%clk
0:00:33.9]} 20... Bc6 {[%clk 0:01:26.8]} 21. Rc1 {[%clk 0:00:19.1]} 21... Rc8
{[%clk 0:01:16.2]} 22. Kg1 {[%clk 0:00:15.5]} 22... a6 {[%clk 0:01:16.1]} 23. a4
{[%clk 0:00:14.9]} 23... Nd6 {[%clk 0:01:15.8]} 24. Bb6 {[%clk 0:00:09.7]} 24...
Bxg2 {[%clk 0:01:14.1]} 25. Rxc8+ {[%clk 0:00:07.9]} 25... Nxc8 {[%clk 0:01:15]}
0-1

[Event "*** Titled Tuesday Blitz"]
[Site "Chess.com"]
[Date "2020.05.12"]
[Round "1"]
[White "vugarrasulov"]
[Black "2nd_life"]
[Result "1-0"]
[WhiteElo "2783"]
[BlackElo "2411"]
[TimeControl "180+1"]
[EndTime "10:05:47 PDT"]
[Termination "vugarrasulov won on time"]

1. e4 {[%clk 0:03:00.9]} 1... e5 {[%clk 0:02:59.1]} 2. Nf3 {[%clk 0:03:00.4]}
2... Nc6 {[%clk 0:02:59.4]} 3. Bb5 {[%clk 0:03:00.4]} 3... a6 {[%clk 0:02:59.8]}
4. Ba4 {[%clk 0:03:00.6]} 4... Nf6 {[%clk 0:03:00.2]} 5. O-O {[%clk 0:03:01]}
5... Be7 {[%clk 0:03:00.6]} 6. Re1 {[%clk 0:03:01.2]} 6... b5 {[%clk 0:03:00.9]}
7. Bb3 {[%clk 0:03:01.7]} 7... d6 {[%clk 0:03:01.2]} 8. c3 {[%clk 0:03:01.9]}
8... O-O {[%clk 0:03:01.4]} 9. h3 {[%clk 0:03:00.9]} 9... Bb7 {[%clk 0:03:01.7]}
10. d3 {[%clk 0:02:58.9]} 10... Re8 {[%clk 0:02:54.6]} 11. Nbd2 {[%clk
0:02:59.1]} 11... Bf8 {[%clk 0:02:52]} 12. Nf1 {[%clk 0:02:58.8]} 12... Na5
{[%clk 0:02:39.4]} 13. Bc2 {[%clk 0:02:58.2]} 13... c5 {[%clk 0:02:39.2]} 14.
Ng3 {[%clk 0:02:55.7]} 14... g6 {[%clk 0:02:32.8]} 15. a4 {[%clk 0:02:54.2]}
15... Bg7 {[%clk 0:02:09.8]} 16. Bg5 {[%clk 0:02:53.7]} 16... h6 {[%clk
0:02:07.8]} 17. Be3 {[%clk 0:02:53.2]} 17... Qc7 {[%clk 0:01:30.5]} 18. Nh2
{[%clk 0:02:41.5]} 18... d5 {[%clk 0:01:13.8]} 19. Qf3 {[%clk 0:02:38]} 19...
dxe4 {[%clk 0:01:03.7]} 20. dxe4 {[%clk 0:02:36.4]} 20... Nc4 {[%clk 0:00:54.1]}
21. Bc1 {[%clk 0:02:35.1]} 21... Kh7 {[%clk 0:00:49.5]} 22. Ng4 {[%clk
0:02:28.1]} 22... Nxg4 {[%clk 0:00:47.6]} 23. hxg4 {[%clk 0:02:29]} 23... Kg8
{[%clk 0:00:42.5]} 24. Nf1 {[%clk 0:02:22]} 24... Bc6 {[%clk 0:00:40.1]} 25. b3
{[%clk 0:02:17.1]} 25... Nd6 {[%clk 0:00:38.9]} 26. Ne3 {[%clk 0:02:17.3]} 26...
Qb7 {[%clk 0:00:30.6]} 27. axb5 {[%clk 0:02:07]} 27... axb5 {[%clk 0:00:28.6]}
28. Rxa8 {[%clk 0:02:07.8]} 28... Qxa8 {[%clk 0:00:26.1]} 29. Nd5 {[%clk
0:02:08.7]} 29... Bxd5 {[%clk 0:00:20.2]} 30. exd5 {[%clk 0:02:08.7]} 30... c4
{[%clk 0:00:18.2]} 31. bxc4 {[%clk 0:02:06.7]} 31... bxc4 {[%clk 0:00:17.6]} 32.
Qh3 {[%clk 0:01:53.9]} 32... Qxd5 {[%clk 0:00:15.5]} 33. Bxh6 {[%clk 0:01:54.4]}
33... Qe6 {[%clk 0:00:11.4]} 34. Rd1 {[%clk 0:01:49.6]} 34... Nb5 {[%clk
0:00:08.6]} 35. Ba4 {[%clk 0:01:48.9]} 35... Rb8 {[%clk 0:00:07.5]} 36. Bxb5
{[%clk 0:01:48.3]} 1-0

[Event "*** Titled Tuesday Blitz"]
[Site "Chess.com"]
[Date "2020.05.12"]
[Round "1"]
[White "dolynachess"]
[Black "Alexander_Donchenko"]
[Result "0-1"]
[WhiteElo "2396"]
[BlackElo "2749"]
[TimeControl "180+1"]
[EndTime "10:05:47 PDT"]
[Termination "Alexander_Donchenko won on time"]

1. d4 {[%clk 0:02:43.7]} 1... Nf6 {[%clk 0:02:59.6]} 2. c4 {[%clk 0:02:38.8]}
2... e6 {[%clk 0:02:58.5]} 3. g3 {[%clk 0:02:36.6]} 3... c5 {[%clk 0:02:58.1]}
4. Nf3 {[%clk 0:02:33.2]} 4... cxd4 {[%clk 0:02:58.1]} 5. Nxd4 {[%clk
0:02:32.1]} 5... d5 {[%clk 0:02:58.8]} 6. Bg2 {[%clk 0:02:27.6]} 6... e5 {[%clk
0:02:59.2]} 7. Nc2 {[%clk 0:02:23.4]} 7... d4 {[%clk 0:02:56.7]} 8. O-O {[%clk
0:02:21.3]} 8... Nc6 {[%clk 0:02:56.6]} 9. b4 {[%clk 0:01:54.7]} 9... Be6 {[%clk
0:02:51.9]} 10. c5 {[%clk 0:01:43.1]} 10... Be7 {[%clk 0:02:42.5]} 11. f4 {[%clk
0:01:24.4]} 11... e4 {[%clk 0:02:31.8]} 12. Bb2 {[%clk 0:01:16.4]} 12... d3
{[%clk 0:02:27]} 13. exd3 {[%clk 0:01:08.4]} 13... exd3 {[%clk 0:02:27.9]} 14.
Ne1 {[%clk 0:01:05.5]} 14... Nxb4 {[%clk 0:02:25.5]} 15. Qa4+ {[%clk 0:00:50.1]}
15... Nc6 {[%clk 0:02:07.2]} 16. Nxd3 {[%clk 0:00:49.9]} 16... O-O {[%clk
0:01:57.3]} 17. Rd1 {[%clk 0:00:33.8]} 17... Bf5 {[%clk 0:01:52.4]} 18. Qc4
{[%clk 0:00:18.6]} 18... Ng4 {[%clk 0:01:31.1]} 19. Nf2 {[%clk 0:00:06]} 19...
Qa5 {[%clk 0:01:22.1]} 0-1

[Event "*** Titled Tuesday Blitz"]
[Site "Chess.com"]
[Date "2020.05.12"]
[Round "1"]
[White "Durarbayli"]
[Black "kleopl"]
[Result "1-0"]
[WhiteElo "2796"]
[BlackElo "2415"]
[TimeControl "180+1"]
[EndTime "10:05:48 PDT"]
[Termination "Durarbayli won by resignation"]

1. e4 {[%clk 0:03:00.9]} 1... d5 {[%clk 0:02:56.6]} 2. exd5 {[%clk 0:02:58.4]}
2... Qxd5 {[%clk 0:02:57.5]} 3. Nf3 {[%clk 0:02:59.1]} 3... Bg4 {[%clk
0:02:56.3]} 4. Be2 {[%clk 0:02:58.3]} 4... Nc6 {[%clk 0:02:53.1]} 5. Nc3 {[%clk
0:02:49.8]} 5... Qd7 {[%clk 0:02:46.4]} 6. d4 {[%clk 0:02:41.8]} 6... O-O-O
{[%clk 0:02:35.5]} 7. d5 {[%clk 0:02:31.4]} 7... Nb4 {[%clk 0:02:22.5]} 8. Ne5
{[%clk 0:02:30.8]} 8... Bxe2 {[%clk 0:02:12.7]} 9. Qxe2 {[%clk 0:02:26.4]} 9...
Qf5 {[%clk 0:02:10.5]} 10. O-O {[%clk 0:02:24.1]} 10... Nxd5 {[%clk 0:01:28.2]}
11. Nb5 {[%clk 0:02:20.3]} 11... Kb8 {[%clk 0:01:01.3]} 12. Rd1 {[%clk
0:02:13.3]} 12... a6 {[%clk 0:00:39.4]} 13. Nd4 {[%clk 0:02:01.8]} 13... Qf6
{[%clk 0:00:33]} 14. Bg5 {[%clk 0:01:39.2]} 14... Qxg5 {[%clk 0:00:22.2]} 15.
Nxf7 {[%clk 0:01:39.1]} 15... Nf4 {[%clk 0:00:19.7]} 16. Nc6+ {[%clk 0:01:11.9]}
16... bxc6 {[%clk 0:00:13.1]} 17. Rxd8+ {[%clk 0:01:12.3]} 17... Kb7 {[%clk
0:00:13.3]} 18. Nxg5 {[%clk 0:01:13.2]} 18... Nxe2+ {[%clk 0:00:12.6]} 19. Kf1
{[%clk 0:01:13.7]} 19... Nh6 {[%clk 0:00:08.8]} 20. Kxe2 {[%clk 0:01:07.8]}
20... e5 {[%clk 0:00:08.9]} 21. Ne6 {[%clk 0:01:07.4]} 1-0

[Event "*** Titled Tuesday Blitz"]
[Site "Chess.com"]
[Date "2020.05.12"]
[Round "1"]
[White "AGW2016"]
[Black "yamalchess"]
[Result "0-1"]
[WhiteElo "2126"]
[BlackElo "2510"]
[TimeControl "180+1"]
[EndTime "10:05:49 PDT"]
[Termination "yamalchess won by checkmate"]

1. e4 {[%clk 0:03:00.9]} 1... e5 {[%clk 0:02:59.7]} 2. Nf3 {[%clk 0:02:59.6]}
2... Nc6 {[%clk 0:03:00.1]} 3. Bc4 {[%clk 0:02:59.6]} 3... Nf6 {[%clk
0:02:59.5]} 4. d3 {[%clk 0:02:59.3]} 4... Bc5 {[%clk 0:02:58.9]} 5. O-O {[%clk
0:02:59.3]} 5... O-O {[%clk 0:02:58.7]} 6. c3 {[%clk 0:02:57.8]} 6... d5 {[%clk
0:02:58.6]} 7. exd5 {[%clk 0:02:57.2]} 7... Nxd5 {[%clk 0:02:58.6]} 8. Re1
{[%clk 0:02:47.3]} 8... Bg4 {[%clk 0:02:58.3]} 9. h3 {[%clk 0:02:43.7]} 9... Bh5
{[%clk 0:02:58.3]} 10. b4 {[%clk 0:02:41.5]} 10... Bb6 {[%clk 0:02:55]} 11. b5
{[%clk 0:02:36.8]} 11... Na5 {[%clk 0:02:54.7]} 12. Rxe5 {[%clk 0:02:37.2]}
12... Nf6 {[%clk 0:02:41]} 13. Nbd2 {[%clk 0:02:27.5]} 13... Qd7 {[%clk
0:02:25.2]} 14. d4 {[%clk 0:02:19.1]} 14... c5 {[%clk 0:02:15.8]} 15. bxc6
{[%clk 0:02:13.4]} 15... Qxc6 {[%clk 0:02:15.2]} 16. Qf1 {[%clk 0:01:23.2]}
16... Bxf3 {[%clk 0:02:07]} 17. gxf3 {[%clk 0:01:23.1]} 17... Rac8 {[%clk
0:02:04.2]} 18. Bb3 {[%clk 0:01:11]} 18... Qxc3 {[%clk 0:02:01.4]} 19. Rb1
{[%clk 0:01:11]} 19... Qxd4 {[%clk 0:01:57.1]} 20. Re7 {[%clk 0:01:07.6]} 20...
Qh4 {[%clk 0:01:51.1]} 21. Bb2 {[%clk 0:00:58.2]} 21... Nxb3 {[%clk 0:01:49.5]}
22. axb3 {[%clk 0:00:55.5]} 22... Ng4 {[%clk 0:01:48.7]} 23. Re2 {[%clk
0:00:51.8]} 23... Nxf2 {[%clk 0:01:46.5]} 24. Rxf2 {[%clk 0:00:49.9]} 24... Qg3+
{[%clk 0:01:46.4]} 25. Qg2 {[%clk 0:00:48.7]} 25... Bxf2+ {[%clk 0:01:46.2]} 26.
Kf1 {[%clk 0:00:49.3]} 26... Qxg2+ {[%clk 0:01:45.6]} 27. Kxg2 {[%clk
0:00:49.9]} 27... Rc2 {[%clk 0:01:44]} 28. Kxf2 {[%clk 0:00:43.4]} 28... Rxd2+
{[%clk 0:01:43.9]} 29. Ke3 {[%clk 0:00:44.3]} 29... Rfd8 {[%clk 0:01:43.2]} 30.
Be5 {[%clk 0:00:41]} 30... f6 {[%clk 0:01:40.4]} 31. Bf4 {[%clk 0:00:36.6]}
31... g5 {[%clk 0:01:36.5]} 32. Bc7 {[%clk 0:00:35.9]} 32... R8d3+ {[%clk
0:01:34.8]} 33. Ke4 {[%clk 0:00:36]} 33... Kf7 {[%clk 0:01:34.9]} 34. Ra1 {[%clk
0:00:33.9]} 34... Ke6 {[%clk 0:01:34.3]} 35. Ra5 {[%clk 0:00:29.1]} 35... b6
{[%clk 0:01:29.1]} 36. Rb5 {[%clk 0:00:28.1]} 36... f5+ {[%clk 0:01:26]} 37.
Rxf5 {[%clk 0:00:26.9]} 37... Rd4+ {[%clk 0:01:26.1]} 38. Ke3 {[%clk 0:00:27.3]}
38... Kxf5 {[%clk 0:01:26.1]} 39. b4 {[%clk 0:00:27.2]} 39... R4d3# {[%clk
0:01:25.9]} 0-1

[Event "*** Titled Tuesday Blitz"]
[Site "Chess.com"]
[Date "2020.05.12"]
[Round "1"]
[White "Spartakus1975"]
[Black "MariaFominykh"]
[Result "1-0"]
[WhiteElo "2709"]
[BlackElo "2368"]
[TimeControl "180+1"]
[EndTime "10:05:55 PDT"]
[Termination "Spartakus1975 won by resignation"]

1. e4 {[%clk 0:02:55.7]} 1... d6 {[%clk 0:02:59]} 2. d4 {[%clk 0:02:52.7]} 2...
Nf6 {[%clk 0:02:58.8]} 3. Nc3 {[%clk 0:02:49.9]} 3... e5 {[%clk 0:02:55.9]} 4.
dxe5 {[%clk 0:02:46.8]} 4... dxe5 {[%clk 0:02:55.3]} 5. Qxd8+ {[%clk 0:02:47.4]}
5... Kxd8 {[%clk 0:02:55.1]} 6. Bg5 {[%clk 0:02:48]} 6... Be6 {[%clk 0:02:49.7]}
7. g3 {[%clk 0:02:45.9]} 7... Be7 {[%clk 0:02:42.9]} 8. f4 {[%clk 0:02:39.2]}
8... h6 {[%clk 0:02:05.4]} 9. O-O-O+ {[%clk 0:02:34.1]} 9... Ke8 {[%clk
0:01:50.8]} 10. Bxf6 {[%clk 0:02:29]} 10... Bxf6 {[%clk 0:01:48.4]} 11. Nf3
{[%clk 0:02:12.8]} 11... Bg4 {[%clk 0:01:41.2]} 12. Be2 {[%clk 0:02:05.3]} 12...
exf4 {[%clk 0:01:35.1]} 13. gxf4 {[%clk 0:02:04.3]} 13... Bxc3 {[%clk
0:01:32.5]} 14. bxc3 {[%clk 0:02:03.5]} 14... Nd7 {[%clk 0:01:22.8]} 15. Rhg1
{[%clk 0:02:02.2]} 15... Bxf3 {[%clk 0:00:59.8]} 16. Bxf3 {[%clk 0:02:01.3]}
16... g6 {[%clk 0:00:53.6]} 17. e5 {[%clk 0:02:01]} 17... c6 {[%clk 0:00:52.8]}
18. e6 {[%clk 0:01:53.6]} 18... Nf6 {[%clk 0:00:46.5]} 19. Rge1 {[%clk 0:01:39]}
19... fxe6 {[%clk 0:00:40.2]} 20. Rxe6+ {[%clk 0:01:37.9]} 20... Kf7 {[%clk
0:00:40.2]} 21. Rdd6 {[%clk 0:01:37.7]} 21... Nh5 {[%clk 0:00:26.8]} 22. Rxg6
{[%clk 0:01:29.2]} 22... Ng7 {[%clk 0:00:19.9]} 23. Be2 {[%clk 0:01:16.9]} 23...
Nf5 {[%clk 0:00:12.4]} 24. Rdf6+ {[%clk 0:01:12.8]} 24... Ke7 {[%clk 0:00:10.6]}
25. Rxf5 {[%clk 0:01:12.7]} 1-0

[Event "*** Titled Tuesday Blitz"]
[Site "Chess.com"]
[Date "2020.05.12"]
[Round "1"]
[White "Margarita2907"]
[Black "Gergo85"]
[Result "0-1"]
[WhiteElo "1986"]
[BlackElo "2480"]
[TimeControl "180+1"]
[EndTime "10:05:56 PDT"]
[Termination "Gergo85 won by resignation"]

1. d4 {[%clk 0:03:00.3]} 1... d5 {[%clk 0:02:59.5]} 2. Nf3 {[%clk 0:02:59.7]}
2... Nf6 {[%clk 0:02:59.1]} 3. e3 {[%clk 0:03:00.2]} 3... Bg4 {[%clk 0:02:58.2]}
4. Be2 {[%clk 0:02:59.4]} 4... e6 {[%clk 0:02:58.7]} 5. O-O {[%clk 0:02:57.5]}
5... Bd6 {[%clk 0:02:58]} 6. h3 {[%clk 0:02:54.1]} 6... Bh5 {[%clk 0:02:57.7]}
7. Nbd2 {[%clk 0:02:53]} 7... O-O {[%clk 0:02:57.3]} 8. b3 {[%clk 0:02:46.3]}
8... c5 {[%clk 0:02:56.3]} 9. Bb2 {[%clk 0:02:36.1]} 9... cxd4 {[%clk
0:02:54.8]} 10. Nxd4 {[%clk 0:02:33.7]} 10... Bxe2 {[%clk 0:02:55.7]} 11. Qxe2
{[%clk 0:02:32.6]} 11... Nc6 {[%clk 0:02:56.3]} 12. c4 {[%clk 0:02:30.3]} 12...
Nxd4 {[%clk 0:01:55.3]} 13. Bxd4 {[%clk 0:02:27.2]} 13... Qe7 {[%clk 0:01:55.3]}
14. cxd5 {[%clk 0:02:22]} 14... Nxd5 {[%clk 0:01:56.2]} 15. Ne4 {[%clk
0:02:11.6]} 15... Ba3 {[%clk 0:01:48.6]} 16. Rad1 {[%clk 0:01:54.9]} 16... Rac8
{[%clk 0:01:45.1]} 17. Rd2 {[%clk 0:01:44.2]} 17... f5 {[%clk 0:01:40.3]} 18.
Ng3 {[%clk 0:01:41.2]} 18... b6 {[%clk 0:01:26.3]} 19. Rc2 {[%clk 0:01:36.9]}
19... Nb4 {[%clk 0:01:16.8]} 20. Rxc8 {[%clk 0:01:34.3]} 20... Rxc8 {[%clk
0:01:17.7]} 21. Nh5 {[%clk 0:01:29.1]} 21... e5 {[%clk 0:01:09.8]} 22. Ba1
{[%clk 0:01:08.8]} 22... g6 {[%clk 0:01:09.8]} 23. Ng3 {[%clk 0:01:06.2]} 23...
Rc2 {[%clk 0:01:10.1]} 24. Qb5 {[%clk 0:01:03.8]} 24... Rc5 {[%clk 0:00:38.7]}
25. Qa4 {[%clk 0:00:56.9]} 25... Ra5 {[%clk 0:00:34.4]} 0-1

[Event "*** Titled Tuesday Blitz"]
[Site "Chess.com"]
[Date "2020.05.12"]
[Round "1"]
[White "MacDaddyMac"]
[Black "viktorskliarov"]
[Result "0-1"]
[WhiteElo "2281"]
[BlackElo "2592"]
[TimeControl "180+1"]
[EndTime "10:05:57 PDT"]
[Termination "viktorskliarov won by resignation"]

1. e4 {[%clk 0:03:00.1]} 1... c5 {[%clk 0:02:59.7]} 2. Nc3 {[%clk 0:02:57.5]}
2... Nc6 {[%clk 0:02:59.8]} 3. f4 {[%clk 0:02:57.8]} 3... g6 {[%clk 0:02:59.9]}
4. Nf3 {[%clk 0:02:58]} 4... Bg7 {[%clk 0:03:00.5]} 5. Bb5 {[%clk 0:02:58.4]}
5... Nd4 {[%clk 0:03:00.4]} 6. O-O {[%clk 0:02:58.6]} 6... a6 {[%clk 0:03:00.2]}
7. Bc4 {[%clk 0:02:56.2]} 7... b5 {[%clk 0:03:00.2]} 8. Bd5 {[%clk 0:02:55.7]}
8... Rb8 {[%clk 0:02:59.8]} 9. e5 {[%clk 0:02:55.9]} 9... e6 {[%clk 0:02:56.5]}
10. Be4 {[%clk 0:02:55.8]} 10... d5 {[%clk 0:02:56.4]} 11. exd6 {[%clk
0:02:54.5]} 11... Qxd6 {[%clk 0:02:55.2]} 12. d3 {[%clk 0:02:54.2]} 12... f5
{[%clk 0:02:38.5]} 13. Ng5 {[%clk 0:02:43.7]} 13... fxe4 {[%clk 0:02:28.5]} 14.
Ncxe4 {[%clk 0:02:43.3]} 14... Qc7 {[%clk 0:02:21.3]} 15. c3 {[%clk 0:02:42.9]}
15... Nf5 {[%clk 0:02:09.6]} 16. g4 {[%clk 0:02:42.5]} 16... Nd6 {[%clk
0:02:04.7]} 17. Re1 {[%clk 0:02:35.5]} 17... Nxe4 {[%clk 0:02:01.3]} 18. Rxe4
{[%clk 0:02:35.3]} 18... Nf6 {[%clk 0:01:53.9]} 19. Nxe6 {[%clk 0:02:34.9]}
19... Bxe6 {[%clk 0:01:53.6]} 20. Rxe6+ {[%clk 0:02:35.2]} 20... Kf7 {[%clk
0:01:53.8]} 21. Rxa6 {[%clk 0:02:32.4]} 21... Rhe8 {[%clk 0:01:47.5]} 22. a4
{[%clk 0:02:31.7]} 22... b4 {[%clk 0:01:44.4]} 23. Qb3+ {[%clk 0:02:17.7]} 23...
Kf8 {[%clk 0:01:33]} 24. g5 {[%clk 0:02:10.4]} 24... bxc3 {[%clk 0:01:10.9]} 25.
Qxc3 {[%clk 0:01:30.5]} 25... Nd5 {[%clk 0:01:10.7]} 26. Qc4 {[%clk 0:01:30.3]}
26... Nb4 {[%clk 0:01:10]} 27. Re6 {[%clk 0:01:26.8]} 27... Rxe6 {[%clk
0:01:08.6]} 28. Qxe6 {[%clk 0:01:26.9]} 28... Re8 {[%clk 0:01:09.1]} 29. Qc4
{[%clk 0:01:27]} 29... Re1+ {[%clk 0:01:06.3]} 30. Kf2 {[%clk 0:01:27.3]} 30...
Qe7 {[%clk 0:01:03.7]} 31. Bd2 {[%clk 0:01:04.7]} 31... Rxa1 {[%clk 0:00:53.4]}
32. Be3 {[%clk 0:00:59.4]} 32... Bd4 {[%clk 0:00:47.8]} 33. Bxd4 {[%clk
0:00:55.4]} 33... cxd4 {[%clk 0:00:47.7]} 34. Qc8+ {[%clk 0:00:54.1]} 34... Kg7
{[%clk 0:00:47]} 35. Qc4 {[%clk 0:00:47.5]} 35... Qe3+ {[%clk 0:00:46.1]} 0-1

[Event "*** Titled Tuesday Blitz"]
[Site "Chess.com"]
[Date "2020.05.12"]
[Round "1"]
[White "ChessTraining77"]
[Black "lamomiablanca"]
[Result "1-0"]
[WhiteElo "2525"]
[BlackElo "2174"]
[TimeControl "180+1"]
[EndTime "10:05:57 PDT"]
[Termination "ChessTraining77 won on time"]

1. e4 {[%clk 0:02:58.3]} 1... d5 {[%clk 0:02:57.8]} 2. exd5 {[%clk 0:02:57]}
2... Qxd5 {[%clk 0:02:57.3]} 3. Nc3 {[%clk 0:02:56]} 3... Qd8 {[%clk 0:02:55.8]}
4. d4 {[%clk 0:02:55.5]} 4... Nf6 {[%clk 0:02:55.2]} 5. Bc4 {[%clk 0:02:55.2]}
5... g6 {[%clk 0:02:54.3]} 6. Nf3 {[%clk 0:02:54.3]} 6... Bg7 {[%clk 0:02:45.9]}
7. Ne5 {[%clk 0:02:51.4]} 7... O-O {[%clk 0:02:44.8]} 8. O-O {[%clk 0:02:50.9]}
8... Nfd7 {[%clk 0:02:20.6]} 9. f4 {[%clk 0:02:44.1]} 9... Nxe5 {[%clk
0:02:09.7]} 10. dxe5 {[%clk 0:02:41.6]} 10... Qxd1 {[%clk 0:01:46.1]} 11. Rxd1
{[%clk 0:02:40.9]} 11... c6 {[%clk 0:01:45.6]} 12. Be3 {[%clk 0:02:37]} 12...
Bf5 {[%clk 0:01:39.8]} 13. Rd2 {[%clk 0:02:36.6]} 13... b5 {[%clk 0:01:18]} 14.
Bb3 {[%clk 0:02:34.2]} 14... a5 {[%clk 0:01:15.6]} 15. a4 {[%clk 0:02:32.6]}
15... b4 {[%clk 0:01:14.7]} 16. Ne2 {[%clk 0:02:32]} 16... Be4 {[%clk
0:00:56.9]} 17. Ng3 {[%clk 0:02:15.9]} 17... Bd5 {[%clk 0:00:40.9]} 18. Bxd5
{[%clk 0:02:15]} 18... cxd5 {[%clk 0:00:39.9]} 19. Rxd5 {[%clk 0:02:14.8]} 19...
Nc6 {[%clk 0:00:37.6]} 20. Rad1 {[%clk 0:02:12.2]} 20... Rfc8 {[%clk 0:00:33.6]}
21. Ne4 {[%clk 0:02:08.9]} 21... f6 {[%clk 0:00:28.4]} 22. exf6 {[%clk
0:02:07.1]} 22... exf6 {[%clk 0:00:27.7]} 23. Nc5 {[%clk 0:01:53.9]} 23... Re8
{[%clk 0:00:26.8]} 24. Kf2 {[%clk 0:01:46.2]} 24... f5 {[%clk 0:00:21.3]} 25. b3
{[%clk 0:01:43.6]} 25... Re7 {[%clk 0:00:13.6]} 26. Rd7 {[%clk 0:01:42.4]} 26...
Rae8 {[%clk 0:00:08.9]} 27. Rxe7 {[%clk 0:01:41.2]} 27... Rxe7 {[%clk
0:00:09.8]} 28. Rd6 {[%clk 0:01:38.1]} 28... Na7 {[%clk 0:00:05.6]} 29. Ne6
{[%clk 0:01:31]} 1-0